[Event "*** Titled Tuesday Blitz"]
[Site "Chess.com"]
[Date "2020.12.29"]
[Round "1"]
[White "FlySooHigh"]
[Black "Blue_Ratatoeskr"]
[Result "1-0"]
[WhiteElo "2647"]
[BlackElo "2337"]
[TimeControl "180+1"]
[EndTime "10:05:43 PST"]
[Termination "FlySooHigh won by resignation"]

1. e4 {[%clk 0:03:00.9]} 1... e6 {[%clk 0:02:59.3]} 2. d4 {[%clk 0:03:00.2]}
2... d5 {[%clk 0:02:59.7]} 3. e5 {[%clk 0:03:00.1]} 3... c5 {[%clk 0:02:59.2]}
4. c3 {[%clk 0:03:00.4]} 4... Nc6 {[%clk 0:02:58.7]} 5. Nf3 {[%clk 0:03:00.4]}
5... Bd7 {[%clk 0:02:58.8]} 6. Be2 {[%clk 0:02:54.4]} 6... Nge7 {[%clk
0:02:55.6]} 7. Na3 {[%clk 0:02:53.4]} 7... cxd4 {[%clk 0:02:51.9]} 8. cxd4
{[%clk 0:02:54.3]} 8... Ng6 {[%clk 0:02:51.8]} 9. Nc2 {[%clk 0:02:52.7]} 9...
Be7 {[%clk 0:02:51.7]} 10. g3 {[%clk 0:02:52]} 10... O-O {[%clk 0:02:50.9]} 11.
h4 {[%clk 0:02:51.4]} 11... f6 {[%clk 0:02:51.4]} 12. h5 {[%clk 0:02:50.5]}
12... Nh8 {[%clk 0:02:51.9]} 13. Bf4 {[%clk 0:02:31.7]} 13... Nf7 {[%clk
0:02:48.3]} 14. Qd2 {[%clk 0:02:24.9]} 14... fxe5 {[%clk 0:02:45]} 15. dxe5
{[%clk 0:02:20.8]} 15... Qb6 {[%clk 0:02:38.5]} 16. Rb1 {[%clk 0:01:56.2]} 16...
Rac8 {[%clk 0:01:43.8]} 17. O-O {[%clk 0:01:54.6]} 17... a5 {[%clk 0:01:39.6]}
18. Bd3 {[%clk 0:01:49.4]} 18... Nb4 {[%clk 0:01:35.4]} 19. Nxb4 {[%clk
0:01:48.4]} 19... Bxb4 {[%clk 0:01:35.9]} 20. Qe2 {[%clk 0:01:47.1]} 20... a4
{[%clk 0:01:26.4]} 21. Rbc1 {[%clk 0:01:39.7]} 21... Bc5 {[%clk 0:01:18]} 22.
Bb1 {[%clk 0:01:20.5]} 22... Bb5 {[%clk 0:00:43.3]} 23. Qc2 {[%clk 0:01:19.6]}
23... Bxf2+ {[%clk 0:00:41.8]} 24. Qxf2 {[%clk 0:01:19.1]} 24... Qxf2+ {[%clk
0:00:42.3]} 25. Rxf2 {[%clk 0:01:16.2]} 25... Rxc1+ {[%clk 0:00:41.8]} 26. Bxc1
{[%clk 0:01:17.1]} 26... Rc8 {[%clk 0:00:35.7]} 27. Bf4 {[%clk 0:01:15.6]} 27...
h6 {[%clk 0:00:26.1]} 28. Nd4 {[%clk 0:01:14.4]} 28... Bd7 {[%clk 0:00:25.3]}
29. Rc2 {[%clk 0:01:11.5]} 1-0

[Event "*** Titled Tuesday Blitz"]
[Site "Chess.com"]
[Date "2020.12.29"]
[Round "1"]
[White "GM_dmitrij"]
[Black "J36225"]
[Result "1-0"]
[WhiteElo "2953"]
[BlackElo "2468"]
[TimeControl "180+1"]
[EndTime "10:05:46 PST"]
[Termination "GM_dmitrij won on time"]

1. c4 {[%clk 0:03:00.5]} 1... Nf6 {[%clk 0:02:59.6]} 2. Nc3 {[%clk 0:02:59.9]}
2... g6 {[%clk 0:02:59.6]} 3. g3 {[%clk 0:02:54.6]} 3... Bg7 {[%clk 0:02:59.5]}
4. Bg2 {[%clk 0:02:55.5]} 4... O-O {[%clk 0:02:59.5]} 5. Nf3 {[%clk 0:02:55]}
5... d6 {[%clk 0:02:59.2]} 6. O-O {[%clk 0:02:55.6]} 6... c6 {[%clk 0:02:59.2]}
7. d4 {[%clk 0:02:54.6]} 7... Bf5 {[%clk 0:02:58.8]} 8. Ng5 {[%clk 0:02:54.6]}
8... h6 {[%clk 0:02:51.6]} 9. e4 {[%clk 0:02:54]} 9... Bg4 {[%clk 0:02:51.5]}
10. f3 {[%clk 0:02:54.1]} 10... hxg5 {[%clk 0:02:48.1]} 11. fxg4 {[%clk
0:02:53.5]} 11... Nh7 {[%clk 0:02:48.3]} 12. Be3 {[%clk 0:02:52.6]} 12... a5
{[%clk 0:02:46]} 13. Qd2 {[%clk 0:02:52]} 13... Na6 {[%clk 0:02:42.7]} 14. Rad1
{[%clk 0:02:50.7]} 14... e5 {[%clk 0:02:37.4]} 15. d5 {[%clk 0:02:39.6]} 15...
c5 {[%clk 0:02:19]} 16. Nb5 {[%clk 0:02:34.5]} 16... f6 {[%clk 0:02:00.8]} 17.
h4 {[%clk 0:02:25.8]} 17... gxh4 {[%clk 0:01:59.5]} 18. gxh4 {[%clk 0:02:26.7]}
18... Nc7 {[%clk 0:01:56.8]} 19. Nc3 {[%clk 0:02:17.9]} 19... Qe7 {[%clk
0:01:43.9]} 20. Rf3 {[%clk 0:02:12.7]} 20... Rf7 {[%clk 0:01:40.7]} 21. Rdf1
{[%clk 0:02:12.6]} 21... Raf8 {[%clk 0:01:40.1]} 22. Bh3 {[%clk 0:02:13.1]}
22... g5 {[%clk 0:01:38.6]} 23. h5 {[%clk 0:02:11.4]} 23... Rb8 {[%clk
0:01:23.3]} 24. R1f2 {[%clk 0:02:06.6]} 24... Rff8 {[%clk 0:01:19.6]} 25. Bf1
{[%clk 0:02:05.6]} 25... Qd7 {[%clk 0:01:03]} 26. Rg2 {[%clk 0:02:04.5]} 26...
Rf7 {[%clk 0:00:35.8]} 27. Bd3 {[%clk 0:02:03.6]} 27... Bh6 {[%clk 0:00:30]} 28.
Rff2 {[%clk 0:01:55.2]} 28... Rbf8 {[%clk 0:00:20.5]} 29. Bc2 {[%clk 0:01:54.3]}
29... Rb8 {[%clk 0:00:18.2]} 30. Ba4 {[%clk 0:01:52.9]} 30... Qe7 {[%clk
0:00:18.2]} 31. Ne2 {[%clk 0:01:52.3]} 31... b6 {[%clk 0:00:17.3]} 32. Ng3
{[%clk 0:01:51.7]} 32... Qd8 {[%clk 0:00:01.9]} 33. Nf5 {[%clk 0:01:51.9]} 33...
Qf8 {[%clk 0:00:02.2]} 34. Bc6 {[%clk 0:01:51.7]} 34... Rc8 {[%clk 0:00:02.2]}
35. a3 {[%clk 0:01:51.2]} 35... Rb8 {[%clk 0:00:02.4]} 36. Qc3 {[%clk
0:01:50.3]} 1-0

[Event "*** Titled Tuesday Blitz"]
[Site "Chess.com"]
[Date "2020.12.29"]
[Round "1"]
[White "MumLookatMeNow"]
[Black "kinga2008"]
[Result "1-0"]
[WhiteElo "2518"]
[BlackElo "2169"]
[TimeControl "180+1"]
[EndTime "10:05:49 PST"]
[Termination "MumLookatMeNow won by resignation"]

1. e4 {[%clk 0:03:00.9]} 1... g6 {[%clk 0:02:52.8]} 2. d4 {[%clk 0:03:00.3]}
2... Bg7 {[%clk 0:02:35.4]} 3. Nf3 {[%clk 0:02:59.5]} 3... d6 {[%clk 0:02:36.3]}
4. Bc4 {[%clk 0:02:59.5]} 4... Nf6 {[%clk 0:02:30.7]} 5. Qe2 {[%clk 0:02:58]}
5... O-O {[%clk 0:02:24.2]} 6. e5 {[%clk 0:02:58.3]} 6... dxe5 {[%clk
0:02:05.6]} 7. dxe5 {[%clk 0:02:59.2]} 7... Nd5 {[%clk 0:01:49.1]} 8. h3 {[%clk
0:02:58.8]} 8... Nc6 {[%clk 0:01:46.1]} 9. O-O {[%clk 0:02:55.5]} 9... e6 {[%clk
0:01:43.8]} 10. Re1 {[%clk 0:02:48.4]} 10... Qe7 {[%clk 0:01:33.6]} 11. Nbd2
{[%clk 0:02:46.2]} 11... Qc5 {[%clk 0:01:15.5]} 12. Ne4 {[%clk 0:02:42.6]} 12...
Qb6 {[%clk 0:01:12]} 13. Bg5 {[%clk 0:02:30.3]} 13... Qxb2 {[%clk 0:01:03.5]}
14. Rab1 {[%clk 0:02:25.1]} 14... Qa3 {[%clk 0:00:55.6]} 15. Rb3 {[%clk
0:02:19.8]} 15... Qa4 {[%clk 0:00:49.6]} 16. Nf6+ {[%clk 0:02:03.2]} 16... Nxf6
{[%clk 0:00:38.9]} 17. exf6 {[%clk 0:02:01.7]} 17... Bh8 {[%clk 0:00:27]} 18.
Bb5 {[%clk 0:01:47.8]} 18... Qa5 {[%clk 0:00:15.9]} 19. Bxc6 {[%clk 0:01:17.6]}
19... bxc6 {[%clk 0:00:14.1]} 20. Ne5 {[%clk 0:01:17.9]} 20... Ba6 {[%clk
0:00:12.6]} 21. Qe3 {[%clk 0:01:18.3]} 21... Qd5 {[%clk 0:00:08.4]} 22. Ng4
{[%clk 0:01:17.7]} 22... Rfd8 {[%clk 0:00:03.1]} 23. Nh6+ {[%clk 0:01:12.5]}
23... Kf8 {[%clk 0:00:02]} 24. Qf4 {[%clk 0:01:13.4]} 24... Qd3 {[%clk
0:00:01.2]} 1-0

[Event "*** Titled Tuesday Blitz"]
[Site "Chess.com"]
[Date "2020.12.29"]
[Round "1"]
[White "Triumphmate"]
[Black "kingofthenil"]
[Result "0-1"]
[WhiteElo "2397"]
[BlackElo "2740"]
[TimeControl "180+1"]
[EndTime "10:05:50 PST"]
[Termination "kingofthenil won by resignation"]

1. e4 {[%clk 0:02:54.7]} 1... Nc6 {[%clk 0:02:57.6]} 2. Nf3 {[%clk 0:02:54.5]}
2... d5 {[%clk 0:02:55.8]} 3. exd5 {[%clk 0:02:53.2]} 3... Qxd5 {[%clk
0:02:56.7]} 4. d4 {[%clk 0:02:53.3]} 4... Bg4 {[%clk 0:02:51.9]} 5. Be2 {[%clk
0:02:52.7]} 5... O-O-O {[%clk 0:02:50.9]} 6. c3 {[%clk 0:02:52.4]} 6... e5
{[%clk 0:02:49.1]} 7. Be3 {[%clk 0:02:49.5]} 7... Nge7 {[%clk 0:02:45]} 8. O-O
{[%clk 0:02:48.4]} 8... Nf5 {[%clk 0:02:44.9]} 9. Nbd2 {[%clk 0:02:42.7]} 9...
exd4 {[%clk 0:02:15.7]} 10. cxd4 {[%clk 0:02:38.7]} 10... Nxe3 {[%clk
0:02:13.9]} 11. fxe3 {[%clk 0:02:38.3]} 11... Bd6 {[%clk 0:02:08.1]} 12. Qb3
{[%clk 0:02:33]} 12... Qxb3 {[%clk 0:01:51.6]} 13. Nxb3 {[%clk 0:02:33.9]} 13...
Rhe8 {[%clk 0:01:49.9]} 14. Kf2 {[%clk 0:02:33.9]} 14... Nb4 {[%clk 0:01:46.7]}
15. Rfd1 {[%clk 0:02:13.5]} 15... Nc2 {[%clk 0:01:43.5]} 16. Rac1 {[%clk
0:02:12.7]} 16... Nxe3 {[%clk 0:01:42.9]} 17. Rd3 {[%clk 0:02:03.1]} 17... Nd5
{[%clk 0:01:42.6]} 18. Nc5 {[%clk 0:01:54.6]} 18... Nf4 {[%clk 0:01:25]} 19. Rd2
{[%clk 0:01:49.8]} 19... b6 {[%clk 0:01:16.5]} 20. Nb3 {[%clk 0:01:38.3]} 20...
Bb4 {[%clk 0:01:04]} 21. Rdc2 {[%clk 0:01:28.8]} 21... Rxe2+ {[%clk 0:01:02.8]}
22. Rxe2 {[%clk 0:01:28.3]} 22... Nxe2 {[%clk 0:01:01.4]} 23. Kxe2 {[%clk
0:01:25.1]} 23... a5 {[%clk 0:00:59.9]} 24. a3 {[%clk 0:01:24.5]} 24... Bd6
{[%clk 0:00:57.8]} 25. Nd2 {[%clk 0:01:17.1]} 25... Bxh2 {[%clk 0:00:54.7]} 26.
Rh1 {[%clk 0:01:13.2]} 26... Bf4 {[%clk 0:00:54.9]} 27. Rh4 {[%clk 0:01:10.2]}
27... Re8+ {[%clk 0:00:53.4]} 28. Kf2 {[%clk 0:01:03.9]} 28... h5 {[%clk
0:00:53.8]} 29. Rh1 {[%clk 0:00:48.9]} 29... Bxd2 {[%clk 0:00:49.4]} 0-1

[Event "*** Titled Tuesday Blitz"]
[Site "Chess.com"]
[Date "2020.12.29"]
[Round "1"]
[White "JakubPulpan"]
[Black "Kopytkin"]
[Result "1-0"]
[WhiteElo "2715"]
[BlackElo "2383"]
[TimeControl "180+1"]
[EndTime "10:05:53 PST"]
[Termination "JakubPulpan won on time"]

1. d4 {[%clk 0:02:54.8]} 1... Nf6 {[%clk 0:02:59.5]} 2. c4 {[%clk 0:02:54.1]}
2... g6 {[%clk 0:02:59.8]} 3. Nc3 {[%clk 0:02:54.7]} 3... Bg7 {[%clk 0:03:00.1]}
4. e4 {[%clk 0:02:54.5]} 4... d6 {[%clk 0:02:58.1]} 5. f3 {[%clk 0:02:52.1]}
5... O-O {[%clk 0:02:53.6]} 6. Nge2 {[%clk 0:02:50.6]} 6... c5 {[%clk
0:02:44.7]} 7. d5 {[%clk 0:02:49.4]} 7... e6 {[%clk 0:02:43.6]} 8. Ng3 {[%clk
0:02:48.9]} 8... exd5 {[%clk 0:02:43.1]} 9. cxd5 {[%clk 0:02:49.8]} 9... a6
{[%clk 0:02:24.9]} 10. a4 {[%clk 0:02:47.8]} 10... Re8 {[%clk 0:02:22.6]} 11.
Be2 {[%clk 0:02:46.2]} 11... h5 {[%clk 0:02:12]} 12. O-O {[%clk 0:02:45.3]}
12... h4 {[%clk 0:02:02.8]} 13. Nh1 {[%clk 0:02:45.5]} 13... Nh5 {[%clk
0:01:58]} 14. Nf2 {[%clk 0:02:38.8]} 14... Bd4 {[%clk 0:01:54]} 15. Qd3 {[%clk
0:02:24.6]} 15... Ng3 {[%clk 0:01:24.4]} 16. Re1 {[%clk 0:02:21.5]} 16... Nd7
{[%clk 0:01:08.2]} 17. Be3 {[%clk 0:02:20]} 17... Ne5 {[%clk 0:01:07.7]} 18. Qd2
{[%clk 0:02:18]} 18... Nxe2+ {[%clk 0:00:44.1]} 19. Qxe2 {[%clk 0:02:16.8]}
19... h3 {[%clk 0:00:30.8]} 20. g3 {[%clk 0:02:03]} 20... Qf6 {[%clk 0:00:28.1]}
21. f4 {[%clk 0:02:00.8]} 21... Bxe3 {[%clk 0:00:28.2]} 22. Qxe3 {[%clk
0:02:01.7]} 22... Ng4 {[%clk 0:00:26.3]} 23. Nxg4 {[%clk 0:02:02.1]} 23... Bxg4
{[%clk 0:00:27.2]} 24. e5 {[%clk 0:02:02.6]} 24... Qe7 {[%clk 0:00:12.5]} 25.
Qf2 {[%clk 0:01:59.4]} 25... Bf5 {[%clk 0:00:10.8]} 26. Ne4 {[%clk 0:01:59.1]}
26... Bxe4 {[%clk 0:00:10.7]} 27. Rxe4 {[%clk 0:01:59.1]} 27... Qd7 {[%clk
0:00:07.3]} 28. Rd1 {[%clk 0:01:46.6]} 28... b5 {[%clk 0:00:05.7]} 29. a5 {[%clk
0:01:46.5]} 29... b4 {[%clk 0:00:05.5]} 30. Qe2 {[%clk 0:01:44.9]} 30... Qb5
{[%clk 0:00:04.5]} 31. Qe3 {[%clk 0:01:42]} 31... Qxa5 {[%clk 0:00:02.7]} 32. e6
{[%clk 0:01:40.7]} 32... f5 {[%clk 0:00:03]} 33. Rc4 {[%clk 0:01:41.1]} 33...
Qc7 {[%clk 0:00:01.9]} 34. g4 {[%clk 0:01:39.5]} 34... Qg7 {[%clk 0:00:01.1]}
35. Kh1 {[%clk 0:01:37.8]} 1-0

[Event "*** Titled Tuesday Blitz"]
[Site "Chess.com"]
[Date "2020.12.29"]
[Round "1"]
[White "Margency"]
[Black "Keures"]
[Result "1-0"]
[WhiteElo "2620"]
[BlackElo "2318"]
[TimeControl "180+1"]
[EndTime "10:05:53 PST"]
[Termination "Margency won by resignation"]

1. e4 {[%clk 0:03:00.1]} 1... e6 {[%clk 0:03:00.3]} 2. d4 {[%clk 0:02:57.7]}
2... d5 {[%clk 0:02:57.6]} 3. Nc3 {[%clk 0:02:57.9]} 3... Nf6 {[%clk 0:02:57.6]}
4. Bg5 {[%clk 0:02:57.5]} 4... Be7 {[%clk 0:02:57.5]} 5. e5 {[%clk 0:02:57.6]}
5... Ne4 {[%clk 0:02:57.4]} 6. Bxe7 {[%clk 0:02:56]} 6... Nxc3 {[%clk
0:02:56.6]} 7. bxc3 {[%clk 0:02:44.2]} 7... Qxe7 {[%clk 0:02:55.7]} 8. Nf3
{[%clk 0:02:42.2]} 8... b6 {[%clk 0:02:55.2]} 9. Bd3 {[%clk 0:02:36.7]} 9... Qa3
{[%clk 0:02:52.6]} 10. Qd2 {[%clk 0:02:33.7]} 10... Ba6 {[%clk 0:02:52.4]} 11.
O-O {[%clk 0:02:33.7]} 11... h6 {[%clk 0:02:49.4]} 12. Rfb1 {[%clk 0:02:32.9]}
12... Bxd3 {[%clk 0:02:48.6]} 13. cxd3 {[%clk 0:02:32.9]} 13... O-O {[%clk
0:02:42.5]} 14. Rb3 {[%clk 0:02:29.3]} 14... Qa4 {[%clk 0:02:35.5]} 15. Qb2
{[%clk 0:02:12.2]} 15... c5 {[%clk 0:02:27.9]} 16. Re1 {[%clk 0:02:10.1]} 16...
Nc6 {[%clk 0:02:23.1]} 17. Ra3 {[%clk 0:02:06.6]} 17... Qxa3 {[%clk 0:02:13.3]}
18. Qxa3 {[%clk 0:02:03.5]} 18... cxd4 {[%clk 0:02:12.6]} 19. cxd4 {[%clk
0:02:03.4]} 19... Na5 {[%clk 0:02:08.1]} 20. Rc1 {[%clk 0:02:01]} 20... Rfc8
{[%clk 0:02:07.9]} 21. h4 {[%clk 0:02:00.8]} 21... Rc6 {[%clk 0:01:59.2]} 22.
Rxc6 {[%clk 0:02:00.3]} 22... Nxc6 {[%clk 0:02:00.1]} 23. Qd6 {[%clk 0:01:58.6]}
23... Na5 {[%clk 0:01:52.8]} 24. Qc7 {[%clk 0:01:56.5]} 24... Kf8 {[%clk
0:01:40.1]} 25. g4 {[%clk 0:01:53]} 25... g6 {[%clk 0:01:39.7]} 26. h5 {[%clk
0:01:48]} 26... g5 {[%clk 0:01:40]} 27. Nh2 {[%clk 0:01:37.3]} 27... Kg7 {[%clk
0:01:37.4]} 28. Kg2 {[%clk 0:01:33.5]} 28... Kg8 {[%clk 0:01:34.6]} 29. Kg3
{[%clk 0:01:33]} 29... Kg7 {[%clk 0:01:34.1]} 30. f4 {[%clk 0:01:33]} 30...
gxf4+ {[%clk 0:01:34.5]} 31. Kxf4 {[%clk 0:01:33.3]} 31... Kg8 {[%clk 0:01:35]}
32. g5 {[%clk 0:01:32.6]} 32... hxg5+ {[%clk 0:01:35]} 33. Kxg5 {[%clk
0:01:33.1]} 33... Kg7 {[%clk 0:01:34.7]} 34. Ng4 {[%clk 0:01:32.5]} 34... Rg8
{[%clk 0:01:32.3]} 35. Nh6 {[%clk 0:01:27.6]} 35... Rf8 {[%clk 0:01:29.8]} 36.
Qe7 {[%clk 0:01:12.6]} 36... Nc6 {[%clk 0:01:24.9]} 37. Qf6+ {[%clk 0:01:12.2]}
37... Kh7 {[%clk 0:01:25.2]} 38. Nxf7 {[%clk 0:00:58.4]} 38... Rg8+ {[%clk
0:01:14.6]} 39. Kf4 {[%clk 0:00:57.9]} 39... Rg7 {[%clk 0:01:09.7]} 40. Ng5+
{[%clk 0:00:55]} 40... Kg8 {[%clk 0:01:05.4]} 41. Qxe6+ {[%clk 0:00:54.7]} 41...
Kf8 {[%clk 0:01:05.8]} 42. Qxc6 {[%clk 0:00:51.8]} 1-0

[Event "*** Titled Tuesday Blitz"]
[Site "Chess.com"]
[Date "2020.12.29"]
[Round "1"]
[White "chessablanca"]
[Black "ExcitingTrap"]
[Result "1-0"]
[WhiteElo "2617"]
[BlackElo "2315"]
[TimeControl "180+1"]
[EndTime "10:05:57 PST"]
[Termination "chessablanca won by resignation"]

1. Nf3 {[%clk 0:02:56.8]} 1... Nf6 {[%clk 0:02:59.6]} 2. g3 {[%clk 0:02:52.1]}
2... g6 {[%clk 0:02:59.9]} 3. b3 {[%clk 0:02:51.4]} 3... Bg7 {[%clk 0:02:59.7]}
4. Bb2 {[%clk 0:02:52.3]} 4... O-O {[%clk 0:02:59.7]} 5. Bg2 {[%clk 0:02:50.9]}
5... d6 {[%clk 0:02:59.6]} 6. d4 {[%clk 0:02:50.9]} 6... c6 {[%clk 0:02:48]} 7.
O-O {[%clk 0:02:48.4]} 7... Qc7 {[%clk 0:02:47.7]} 8. c4 {[%clk 0:02:47.1]} 8...
Nbd7 {[%clk 0:02:47.6]} 9. Nbd2 {[%clk 0:02:45.2]} 9... e5 {[%clk 0:02:47.7]}
10. Rc1 {[%clk 0:02:34.8]} 10... Re8 {[%clk 0:02:44.2]} 11. Re1 {[%clk
0:02:16.7]} 11... h6 {[%clk 0:02:25.5]} 12. e4 {[%clk 0:02:14.9]} 12... Nf8
{[%clk 0:02:21.2]} 13. c5 {[%clk 0:02:03]} 13... N6d7 {[%clk 0:02:02.5]} 14.
cxd6 {[%clk 0:01:54.9]} 14... Qxd6 {[%clk 0:02:03.4]} 15. Nc4 {[%clk 0:01:54.5]}
15... Qc7 {[%clk 0:01:48.3]} 16. dxe5 {[%clk 0:01:48.6]} 16... Nxe5 {[%clk
0:01:38.8]} 17. Nfxe5 {[%clk 0:01:42.9]} 17... Bxe5 {[%clk 0:01:39.7]} 18. Nxe5
{[%clk 0:01:39.3]} 18... Rxe5 {[%clk 0:01:40.6]} 19. Qd4 {[%clk 0:01:22.6]}
19... f6 {[%clk 0:01:30]} 20. f4 {[%clk 0:01:17.2]} 20... Re6 {[%clk 0:01:05.9]}
21. Bf1 {[%clk 0:01:14.6]} 21... Rd6 {[%clk 0:00:54]} 22. Qc3 {[%clk 0:01:11.1]}
22... Kh7 {[%clk 0:00:40]} 23. e5 {[%clk 0:01:07.6]} 23... fxe5 {[%clk
0:00:39.1]} 24. Qxe5 {[%clk 0:01:05.1]} 1-0

[Event "*** Titled Tuesday Blitz"]
[Site "Chess.com"]
[Date "2020.12.29"]
[Round "1"]
[White "GM_LOADING"]
[Black "Klavdia_Nik"]
[Result "1-0"]
[WhiteElo "2491"]
[BlackElo "2061"]
[TimeControl "180+1"]
[EndTime "10:05:57 PST"]
[Termination "GM_LOADING won by resignation"]

1. d4 {[%clk 0:02:59.2]} 1... Nf6 {[%clk 0:02:54.4]} 2. Nf3 {[%clk 0:02:58.8]}
2... c5 {[%clk 0:02:52.5]} 3. d5 {[%clk 0:02:57]} 3... d6 {[%clk 0:02:50.4]} 4.
Nc3 {[%clk 0:02:49.7]} 4... g6 {[%clk 0:02:48.7]} 5. e4 {[%clk 0:02:49.8]} 5...
Bg7 {[%clk 0:02:49.3]} 6. Be2 {[%clk 0:02:48.7]} 6... O-O {[%clk 0:02:49.3]} 7.
O-O {[%clk 0:02:48.8]} 7... Na6 {[%clk 0:02:39.7]} 8. Be3 {[%clk 0:02:41]} 8...
Ng4 {[%clk 0:02:25.2]} 9. Bf4 {[%clk 0:02:40.1]} 9... Nc7 {[%clk 0:02:08.9]} 10.
a4 {[%clk 0:02:37.9]} 10... b6 {[%clk 0:02:08.2]} 11. Nd2 {[%clk 0:02:21]} 11...
Nf6 {[%clk 0:01:53.2]} 12. Nc4 {[%clk 0:02:19.3]} 12... Ba6 {[%clk 0:01:51.4]}
13. Re1 {[%clk 0:02:16.3]} 13... Rb8 {[%clk 0:01:33.6]} 14. Qd2 {[%clk
0:02:11.2]} 14... Re8 {[%clk 0:01:17.5]} 15. Rad1 {[%clk 0:02:05.7]} 15... Bxc4
{[%clk 0:01:11.3]} 16. Bxc4 {[%clk 0:02:06.6]} 16... Nd7 {[%clk 0:01:09.3]} 17.
Nb5 {[%clk 0:01:57.1]} 17... Ne5 {[%clk 0:00:39.8]} 18. Bf1 {[%clk 0:01:50.3]}
18... Rb7 {[%clk 0:00:31.4]} 19. Bg3 {[%clk 0:01:32.5]} 19... Qa8 {[%clk
0:00:20.2]} 20. Nxc7 {[%clk 0:01:21.4]} 20... Rxc7 {[%clk 0:00:19.2]} 21. c3
{[%clk 0:01:12.8]} 21... a6 {[%clk 0:00:18.5]} 22. Ra1 {[%clk 0:01:08.4]} 22...
Qb7 {[%clk 0:00:17.9]} 23. Ra2 {[%clk 0:01:03]} 23... Rb8 {[%clk 0:00:17.3]} 24.
Rea1 {[%clk 0:01:01.8]} 24... Nc4 {[%clk 0:00:15.3]} 25. Bxc4 {[%clk 0:01:01.1]}
1-0

[Event "*** Titled Tuesday Blitz"]
[Site "Chess.com"]
[Date "2020.12.29"]
[Round "1"]
[White "Koalaskakistis"]
[Black "anon132639"]
[Result "0-1"]
[WhiteElo "2388"]
[BlackElo "2727"]
[TimeControl "180+1"]
[EndTime "10:05:58 PST"]
[Termination "anon132639 won by resignation"]

1. e4 {[%clk 0:03:00.5]} 1... c5 {[%clk 0:02:55.7]} 2. Nf3 {[%clk 0:02:41.9]}
2... e6 {[%clk 0:02:54.2]} 3. c4 {[%clk 0:02:39.3]} 3... Nc6 {[%clk 0:02:53.5]}
4. Nc3 {[%clk 0:02:38.7]} 4... Nd4 {[%clk 0:02:52.5]} 5. g3 {[%clk 0:02:34.8]}
5... Ne7 {[%clk 0:02:52]} 6. Bg2 {[%clk 0:02:34.3]} 6... Nec6 {[%clk 0:02:52.1]}
7. O-O {[%clk 0:02:33.4]} 7... g6 {[%clk 0:02:51.5]} 8. d3 {[%clk 0:02:30.6]}
8... Bg7 {[%clk 0:02:51.2]} 9. Nxd4 {[%clk 0:02:19.6]} 9... Nxd4 {[%clk
0:02:49.9]} 10. Ne2 {[%clk 0:02:18.2]} 10... O-O {[%clk 0:02:46.1]} 11. Nxd4
{[%clk 0:02:15.7]} 11... cxd4 {[%clk 0:02:45.5]} 12. f4 {[%clk 0:02:14.8]} 12...
d6 {[%clk 0:02:44.5]} 13. f5 {[%clk 0:02:12.6]} 13... exf5 {[%clk 0:02:42]} 14.
exf5 {[%clk 0:02:13.5]} 14... Bxf5 {[%clk 0:02:42.7]} 15. Bxb7 {[%clk
0:02:04.6]} 15... Rb8 {[%clk 0:02:39.4]} 16. Bd5 {[%clk 0:02:04.1]} 16... h5
{[%clk 0:02:36.2]} 17. Rxf5 {[%clk 0:02:01.2]} 17... gxf5 {[%clk 0:02:37.1]} 18.
Qxh5 {[%clk 0:02:01.3]} 18... Qf6 {[%clk 0:02:21.4]} 19. Bg5 {[%clk 0:01:56.1]}
19... Qe5 {[%clk 0:02:20.4]} 20. Bf4 {[%clk 0:01:44.3]} 20... Qf6 {[%clk
0:02:14]} 21. Bg5 {[%clk 0:01:44.2]} 21... Qe5 {[%clk 0:02:12.3]} 22. Bf4 {[%clk
0:01:31.8]} 22... Qe7 {[%clk 0:01:26.3]} 23. Qxf5 {[%clk 0:01:27.8]} 23... Rxb2
{[%clk 0:01:20.9]} 24. Be4 {[%clk 0:01:26.8]} 24... Rfb8 {[%clk 0:01:14.2]} 25.
Qh7+ {[%clk 0:01:20.9]} 25... Kf8 {[%clk 0:01:13.5]} 26. Bh6 {[%clk 0:00:25.7]}
26... Qf6 {[%clk 0:01:11.9]} 27. Qh8+ {[%clk 0:00:18.9]} 27... Ke7 {[%clk
0:01:08.1]} 28. Bxg7 {[%clk 0:00:19.8]} 28... Qf2+ {[%clk 0:01:06.7]} 29. Kh1
{[%clk 0:00:19.4]} 29... Rxh8 {[%clk 0:01:07.6]} 0-1

[Event "*** Titled Tuesday Blitz"]
[Site "Chess.com"]
[Date "2020.12.29"]
[Round "1"]
[White "SaraciNderim"]
[Black "kobemagic"]
[Result "1-0"]
[WhiteElo "2831"]
[BlackElo "2433"]
[TimeControl "180+1"]
[EndTime "10:06:00 PST"]
[Termination "SaraciNderim won on time"]

1. d4 {[%clk 0:02:58]} 1... Nf6 {[%clk 0:02:59.5]} 2. Nf3 {[%clk 0:02:57.4]}
2... c5 {[%clk 0:02:59.7]} 3. dxc5 {[%clk 0:02:56.4]} 3... Qa5+ {[%clk
0:02:58.8]} 4. Nc3 {[%clk 0:02:38.7]} 4... Qxc5 {[%clk 0:02:58.4]} 5. g3 {[%clk
0:02:36]} 5... g6 {[%clk 0:02:53.8]} 6. Bg2 {[%clk 0:02:34.6]} 6... Bg7 {[%clk
0:02:54.3]} 7. O-O {[%clk 0:02:34.2]} 7... O-O {[%clk 0:02:54.8]} 8. e4 {[%clk
0:02:34.3]} 8... d6 {[%clk 0:02:54.6]} 9. Be3 {[%clk 0:02:31.6]} 9... Qb4 {[%clk
0:02:48.5]} 10. a3 {[%clk 0:02:23.6]} 10... Qxb2 {[%clk 0:02:35.5]} 11. Bd4
{[%clk 0:02:19.3]} 11... Nc6 {[%clk 0:01:14.2]} 12. Ra2 {[%clk 0:02:14.5]} 12...
Qxa2 {[%clk 0:01:05.2]} 13. Nxa2 {[%clk 0:02:14.5]} 13... Nxd4 {[%clk
0:01:01.5]} 14. Nxd4 {[%clk 0:02:13.3]} 14... Bd7 {[%clk 0:01:00.3]} 15. Qd2
{[%clk 0:02:07.9]} 15... a6 {[%clk 0:00:54.8]} 16. Nb4 {[%clk 0:02:06.7]} 16...
Rac8 {[%clk 0:00:48.6]} 17. Rb1 {[%clk 0:02:05.3]} 17... Rc4 {[%clk 0:00:44.1]}
18. Nb3 {[%clk 0:01:44.3]} 18... Rc7 {[%clk 0:00:11.4]} 19. Nd5 {[%clk
0:01:17.1]} 19... Nxd5 {[%clk 0:00:10.2]} 20. exd5 {[%clk 0:01:18]} 20... Rfc8
{[%clk 0:00:10.1]} 21. Be4 {[%clk 0:01:17.3]} 21... Rc4 {[%clk 0:00:07.8]} 22.
Bd3 {[%clk 0:01:16.6]} 22... R4c7 {[%clk 0:00:06.5]} 23. Qe2 {[%clk 0:01:13.9]}
23... Ba4 {[%clk 0:00:05.3]} 24. Na5 {[%clk 0:01:11.5]} 1-0